[Event "*** Titled Tuesday Blitz"]
[Site "Chess.com"]
[Date "2020.04.07"]
[Round "4"]
[White "Rodalquilar"]
[Black "AsaHoffmann"]
[Result "1-0"]
[WhiteElo "2623"]
[BlackElo "2274"]
[TimeControl "180+1"]
[EndTime "13:39:30 PDT"]
[Termination "Rodalquilar won by resignation"]

1. d4 {[%clk 0:03:00.9]} 1... Nf6 {[%clk 0:02:58.6]} 2. Bf4 {[%clk 0:03:00.9]}
2... c5 {[%clk 0:02:57.2]} 3. e3 {[%clk 0:03:01]} 3... b6 {[%clk 0:02:56.9]} 4.
Nf3 {[%clk 0:03:00.8]} 4... Bb7 {[%clk 0:02:56.4]} 5. Nbd2 {[%clk 0:03:01.3]}
5... d6 {[%clk 0:02:56.4]} 6. h3 {[%clk 0:03:00.3]} 6... g6 {[%clk 0:02:55.8]}
7. Be2 {[%clk 0:03:00.4]} 7... Bg7 {[%clk 0:02:55.7]} 8. O-O {[%clk 0:03:00.8]}
8... O-O {[%clk 0:02:55.5]} 9. Bh2 {[%clk 0:03:01.1]} 9... Nbd7 {[%clk 0:02:55]}
10. c3 {[%clk 0:03:01.2]} 10... Rc8 {[%clk 0:02:54.2]} 11. a4 {[%clk 0:03:01.5]}
11... a6 {[%clk 0:02:53.8]} 12. Bd3 {[%clk 0:03:01.2]} 12... Rc7 {[%clk
0:02:53.3]} 13. Qe2 {[%clk 0:03:00.8]} 13... Qa8 {[%clk 0:02:52.6]} 14. e4
{[%clk 0:03:00.6]} 14... Re8 {[%clk 0:02:49.5]} 15. e5 {[%clk 0:02:59.5]} 15...
Nd5 {[%clk 0:02:41.3]} 16. e6 {[%clk 0:02:55.1]} 16... fxe6 {[%clk 0:02:18.3]}
17. Qxe6+ {[%clk 0:02:55]} 17... Kh8 {[%clk 0:02:17.7]} 18. Ng5 {[%clk
0:02:47.7]} 18... Rf8 {[%clk 0:01:57.8]} 19. Nxh7 {[%clk 0:02:32.4]} 19... N5f6
{[%clk 0:01:45.1]} 20. Nxf8 {[%clk 0:02:29.1]} 20... Nxf8 {[%clk 0:01:44.7]} 21.
Qe3 {[%clk 0:01:55.5]} 21... Bxg2 {[%clk 0:01:42.1]} 22. Rfe1 {[%clk 0:01:56]}
22... cxd4 {[%clk 0:01:41]} 23. cxd4 {[%clk 0:01:52.3]} 23... Nh5 {[%clk
0:01:21.4]} 24. Rac1 {[%clk 0:01:38.4]} 24... Rxc1 {[%clk 0:01:13.7]} 25. Rxc1
{[%clk 0:01:39.3]} 25... Qd5 {[%clk 0:01:12.4]} 26. Be4 {[%clk 0:01:38.4]} 26...
Bxe4 {[%clk 0:01:11.4]} 27. Qxe4 {[%clk 0:01:38.5]} 27... Qa2 {[%clk 0:01:08.4]}
28. Nf3 {[%clk 0:01:11.7]} 28... Qxb2 {[%clk 0:01:05.4]} 29. Rc8 {[%clk
0:01:11.8]} 29... Kh7 {[%clk 0:00:57.9]} 30. Qxe7 {[%clk 0:01:06.8]} 30... Qb1+
{[%clk 0:00:47]} 31. Kg2 {[%clk 0:01:02.6]} 31... Qf5 {[%clk 0:00:45.8]} 32.
Bxd6 {[%clk 0:00:55.1]} 32... Ne6 {[%clk 0:00:42.4]} 33. Qxe6 {[%clk 0:00:50.5]}
1-0

[Event "*** Titled Tuesday Blitz"]
[Site "Chess.com"]
[Date "2020.04.07"]
[Round "4"]
[White "SergioGarciaFuentes"]
[Black "JulAnt"]
[Result "0-1"]
[WhiteElo "2202"]
[BlackElo "2424"]
[TimeControl "180+1"]
[EndTime "13:39:32 PDT"]
[Termination "JulAnt won by resignation"]

1. Nf3 {[%clk 0:03:00.9]} 1... g6 {[%clk 0:02:59.8]} 2. d4 {[%clk 0:02:59.8]}
2... Nf6 {[%clk 0:02:58.5]} 3. b3 {[%clk 0:02:58.3]} 3... Bg7 {[%clk 0:02:58.8]}
4. Bb2 {[%clk 0:02:58.1]} 4... O-O {[%clk 0:02:59.1]} 5. g3 {[%clk 0:02:58.1]}
5... d6 {[%clk 0:02:59.5]} 6. Bg2 {[%clk 0:02:57.1]} 6... c5 {[%clk 0:02:59.8]}
7. O-O {[%clk 0:02:54.2]} 7... Nbd7 {[%clk 0:03:00.1]} 8. Nbd2 {[%clk
0:02:46.5]} 8... Qc7 {[%clk 0:03:00]} 9. c4 {[%clk 0:02:43.8]} 9... a6 {[%clk
0:02:59.6]} 10. Rc1 {[%clk 0:02:40]} 10... cxd4 {[%clk 0:02:52.8]} 11. Nxd4
{[%clk 0:02:33.5]} 11... e5 {[%clk 0:02:52.6]} 12. Nc2 {[%clk 0:02:24.7]} 12...
Nc5 {[%clk 0:02:52.7]} 13. Nb1 {[%clk 0:02:07.2]} 13... Be6 {[%clk 0:02:49.7]}
14. Nc3 {[%clk 0:02:05.7]} 14... Rad8 {[%clk 0:02:42.2]} 15. Ne3 {[%clk
0:01:56.8]} 15... Qb8 {[%clk 0:02:34.5]} 16. Ncd5 {[%clk 0:01:29.8]} 16... Bxd5
{[%clk 0:02:31.7]} 17. Nxd5 {[%clk 0:01:29.5]} 17... Nxd5 {[%clk 0:02:31.2]} 18.
Qxd5 {[%clk 0:01:22.2]} 18... b5 {[%clk 0:02:29.5]} 19. Rfd1 {[%clk 0:01:16.3]}
19... Rfe8 {[%clk 0:02:19.2]} 20. e3 {[%clk 0:01:13.2]} 20... b4 {[%clk
0:02:06.6]} 21. h4 {[%clk 0:01:08.3]} 21... h5 {[%clk 0:02:05.3]} 22. Rd2 {[%clk
0:01:01.7]} 22... e4 {[%clk 0:02:05.1]} 23. Bxg7 {[%clk 0:00:57.6]} 23... Kxg7
{[%clk 0:02:06]} 24. Rcd1 {[%clk 0:00:56.6]} 24... Re5 {[%clk 0:01:57.1]} 25.
Qd4 {[%clk 0:00:37.1]} 25... f5 {[%clk 0:01:46.4]} 26. Qxe5+ {[%clk 0:00:34]}
26... dxe5 {[%clk 0:01:46.6]} 27. Rxd8 {[%clk 0:00:34.6]} 27... Qb7 {[%clk
0:01:47]} 28. R8d5 {[%clk 0:00:33.4]} 28... Qe7 {[%clk 0:01:35.5]} 29. Bf1
{[%clk 0:00:26.8]} 29... f4 {[%clk 0:01:32.1]} 30. exf4 {[%clk 0:00:24.3]} 30...
exf4 {[%clk 0:01:29.8]} 31. gxf4 {[%clk 0:00:22.7]} 31... Qxh4 {[%clk
0:01:12.6]} 32. Rxc5 {[%clk 0:00:20.6]} 32... Qg4+ {[%clk 0:01:12.5]} 0-1

[Event "*** Titled Tuesday Blitz"]
[Site "Chess.com"]
[Date "2020.04.07"]
[Round "4"]
[White "Rakesh"]
[Black "HrvojeZagreb"]
[Result "1-0"]
[WhiteElo "2333"]
[BlackElo "2115"]
[TimeControl "180+1"]
[EndTime "13:39:36 PDT"]
[Termination "Rakesh won on time"]

1. e4 {[%clk 0:03:00.9]} 1... e6 {[%clk 0:03:00.3]} 2. d4 {[%clk 0:03:00.6]}
2... d5 {[%clk 0:02:59.4]} 3. Bd3 {[%clk 0:03:01.1]} 3... dxe4 {[%clk
0:02:59.3]} 4. Bxe4 {[%clk 0:03:02]} 4... Nf6 {[%clk 0:02:59.7]} 5. Bf3 {[%clk
0:02:58.8]} 5... Nbd7 {[%clk 0:03:00]} 6. Nc3 {[%clk 0:02:57.6]} 6... Bb4 {[%clk
0:02:54.8]} 7. Ne2 {[%clk 0:02:56.5]} 7... O-O {[%clk 0:02:53.8]} 8. O-O {[%clk
0:02:52.4]} 8... e5 {[%clk 0:02:54]} 9. Bg5 {[%clk 0:02:49.3]} 9... c6 {[%clk
0:02:29.4]} 10. dxe5 {[%clk 0:02:45.9]} 10... Nxe5 {[%clk 0:02:28]} 11. Qxd8
{[%clk 0:02:42.1]} 11... Rxd8 {[%clk 0:02:28.9]} 12. Be4 {[%clk 0:02:41.9]}
12... Be6 {[%clk 0:02:11.3]} 13. Bxf6 {[%clk 0:02:40.4]} 13... gxf6 {[%clk
0:02:12.1]} 14. a3 {[%clk 0:02:40.3]} 14... Bf8 {[%clk 0:02:06.6]} 15. Ng3
{[%clk 0:02:39.7]} 15... Rd2 {[%clk 0:01:41.5]} 16. f4 {[%clk 0:02:38.2]} 16...
Nc4 {[%clk 0:01:38.9]} 17. f5 {[%clk 0:02:34.5]} 17... Bd5 {[%clk 0:01:35.1]}
18. Nxd5 {[%clk 0:02:33.5]} 18... cxd5 {[%clk 0:01:34.7]} 19. Bf3 {[%clk
0:02:32.5]} 19... Ne3 {[%clk 0:01:11]} 20. Rf2 {[%clk 0:02:23.1]} 20... Rxf2
{[%clk 0:00:49.9]} 21. Kxf2 {[%clk 0:02:23.9]} 21... Nxc2 {[%clk 0:00:50.3]} 22.
Rc1 {[%clk 0:02:20.4]} 22... Bc5+ {[%clk 0:00:42.4]} 23. Ke2 {[%clk 0:02:13.8]}
23... Nd4+ {[%clk 0:00:39.4]} 24. Kd3 {[%clk 0:02:11.7]} 24... Nxf3 {[%clk
0:00:36.5]} 25. gxf3 {[%clk 0:02:12.6]} 25... Bb6 {[%clk 0:00:33.6]} 26. Nh5
{[%clk 0:02:11.1]} 26... Rd8 {[%clk 0:00:15.4]} 27. Nxf6+ {[%clk 0:02:06.9]}
27... Kh8 {[%clk 0:00:15.1]} 28. Re1 {[%clk 0:02:00.4]} 28... Kg7 {[%clk
0:00:11.8]} 29. Ng4 {[%clk 0:01:53.7]} 29... Rd7 {[%clk 0:00:08.2]} 30. f6+
{[%clk 0:01:52.4]} 30... Kf8 {[%clk 0:00:06.6]} 31. Ne5 {[%clk 0:01:51.7]} 31...
Rd6 {[%clk 0:00:05.7]} 32. Re2 {[%clk 0:01:48.6]} 32... Kg8 {[%clk 0:00:02.3]}
33. Rg2+ {[%clk 0:01:47.5]} 33... Kf8 {[%clk 0:00:02.1]} 34. Rg5 {[%clk
0:01:46.8]} 1-0

[Event "*** Titled Tuesday Blitz"]
[Site "Chess.com"]
[Date "2020.04.07"]
[Round "4"]
[White "jacky72"]
[Black "Playgood28"]
[Result "1-0"]
[WhiteElo "2702"]
[BlackElo "2241"]
[TimeControl "180+1"]
[EndTime "13:39:40 PDT"]
[Termination "jacky72 won on time"]

1. d4 {[%clk 0:03:00.9]} 1... f5 {[%clk 0:02:58.5]} 2. Bg5 {[%clk 0:02:59.8]}
2... h6 {[%clk 0:02:57.4]} 3. Bh4 {[%clk 0:02:57.6]} 3... g5 {[%clk 0:02:57.1]}
4. e3 {[%clk 0:02:58.5]} 4... Nf6 {[%clk 0:02:55.4]} 5. Bg3 {[%clk 0:02:59]}
5... d6 {[%clk 0:02:52.7]} 6. c4 {[%clk 0:02:57.4]} 6... Nc6 {[%clk 0:02:50]} 7.
Nc3 {[%clk 0:02:57.4]} 7... e6 {[%clk 0:02:49.2]} 8. Bd3 {[%clk 0:02:56.1]} 8...
Bd7 {[%clk 0:02:47.8]} 9. h4 {[%clk 0:02:56.2]} 9... Rg8 {[%clk 0:02:42.7]} 10.
hxg5 {[%clk 0:02:55.9]} 10... hxg5 {[%clk 0:02:38.2]} 11. Nge2 {[%clk
0:02:56.8]} 11... Qe7 {[%clk 0:02:36.4]} 12. d5 {[%clk 0:02:56.6]} 12... Ne5
{[%clk 0:02:33.6]} 13. Nd4 {[%clk 0:02:53.7]} 13... Nxd3+ {[%clk 0:02:31.9]} 14.
Qxd3 {[%clk 0:02:54.6]} 14... f4 {[%clk 0:02:24.5]} 15. Bh2 {[%clk 0:02:40.8]}
15... e5 {[%clk 0:02:21.6]} 16. Ndb5 {[%clk 0:02:39.1]} 16... Bxb5 {[%clk
0:02:09.7]} 17. cxb5 {[%clk 0:02:40]} 17... g4 {[%clk 0:01:55.7]} 18. O-O-O
{[%clk 0:02:37.9]} 18... g3 {[%clk 0:01:54.3]} 19. fxg3 {[%clk 0:02:38.8]} 19...
fxg3 {[%clk 0:01:53.6]} 20. Bg1 {[%clk 0:02:39.3]} 20... e4 {[%clk 0:01:48.2]}
21. Qc4 {[%clk 0:02:36.2]} 21... O-O-O {[%clk 0:01:43.8]} 22. Rh4 {[%clk
0:02:29.1]} 22... Rg4 {[%clk 0:01:34.9]} 23. Rxg4 {[%clk 0:02:28.2]} 23... Nxg4
{[%clk 0:01:34.4]} 24. Qxe4 {[%clk 0:02:23.6]} 24... Qxe4 {[%clk 0:01:30.7]} 25.
Nxe4 {[%clk 0:02:24.5]} 25... Re8 {[%clk 0:01:29.4]} 26. Nxg3 {[%clk 0:02:24.1]}
26... Nxe3 {[%clk 0:01:17.2]} 27. Re1 {[%clk 0:02:23.4]} 27... Bh6 {[%clk
0:01:16.6]} 28. Kb1 {[%clk 0:02:21.2]} 28... Kd7 {[%clk 0:01:15.8]} 29. Bxe3
{[%clk 0:02:19.6]} 29... Rxe3 {[%clk 0:00:59.3]} 30. Rxe3 {[%clk 0:02:17.7]}
30... Bxe3 {[%clk 0:00:59.9]} 31. Kc2 {[%clk 0:02:17.5]} 31... Bg1 {[%clk
0:00:48.2]} 32. Nf5 {[%clk 0:02:15.9]} 32... Ke8 {[%clk 0:00:45]} 33. Kd3 {[%clk
0:02:14.5]} 33... Kf7 {[%clk 0:00:45]} 34. Ke4 {[%clk 0:02:12.3]} 34... Kf6
{[%clk 0:00:44]} 35. Nh4 {[%clk 0:02:05.2]} 35... Bc5 {[%clk 0:00:28.1]} 36. Nf3
{[%clk 0:02:02.1]} 36... Bb6 {[%clk 0:00:27.1]} 37. g4 {[%clk 0:02:01]} 37...
Bc5 {[%clk 0:00:26.6]} 38. g5+ {[%clk 0:01:59.8]} 38... Kg6 {[%clk 0:00:25]} 39.
Kf4 {[%clk 0:02:00.7]} 39... Bb6 {[%clk 0:00:21.4]} 40. Kg4 {[%clk 0:01:59.7]}
40... Be3 {[%clk 0:00:20.6]} 41. Nh4+ {[%clk 0:02:00.6]} 41... Kf7 {[%clk
0:00:17.6]} 42. g6+ {[%clk 0:01:59.5]} 42... Kg8 {[%clk 0:00:12.2]} 43. g7
{[%clk 0:02:00.4]} 43... Bd4 {[%clk 0:00:10.7]} 44. b3 {[%clk 0:01:57.4]} 44...
Bxg7 {[%clk 0:00:04.3]} 45. Kf5 {[%clk 0:01:58.2]} 45... Kf7 {[%clk 0:00:01.3]}
46. Ng6 {[%clk 0:01:58.6]} 1-0

[Event "*** Titled Tuesday Blitz"]
[Site "Chess.com"]
[Date "2020.04.07"]
[Round "4"]
[White "BobSacIt"]
[Black "renehp"]
[Result "0-1"]
[WhiteElo "2189"]
[BlackElo "2415"]
[TimeControl "180+1"]
[EndTime "13:39:41 PDT"]
[Termination "renehp won by resignation"]

1. e4 {[%clk 0:03:00.9]} 1... c5 {[%clk 0:03:00]} 2. Nf3 {[%clk 0:03:00.2]} 2...
d6 {[%clk 0:03:00.3]} 3. d4 {[%clk 0:03:00.1]} 3... cxd4 {[%clk 0:03:01.2]} 4.
Nxd4 {[%clk 0:03:00.6]} 4... Nf6 {[%clk 0:03:01.5]} 5. Nc3 {[%clk 0:03:00.8]}
5... a6 {[%clk 0:03:01.8]} 6. Rg1 {[%clk 0:03:01.2]} 6... e5 {[%clk 0:03:00.4]}
7. Nb3 {[%clk 0:03:00.7]} 7... Be6 {[%clk 0:03:00.7]} 8. h3 {[%clk 0:02:50.3]}
8... Be7 {[%clk 0:03:00.4]} 9. Be3 {[%clk 0:02:49.3]} 9... Qc7 {[%clk
0:02:59.9]} 10. g4 {[%clk 0:02:48.4]} 10... O-O {[%clk 0:02:59.7]} 11. g5 {[%clk
0:02:48.3]} 11... Nfd7 {[%clk 0:03:00.2]} 12. Qd2 {[%clk 0:02:37.7]} 12... b5
{[%clk 0:03:00.3]} 13. O-O-O {[%clk 0:02:32.8]} 13... Rc8 {[%clk 0:02:59.2]} 14.
Kb1 {[%clk 0:02:29.9]} 14... b4 {[%clk 0:02:47.6]} 15. Nd5 {[%clk 0:02:29.2]}
15... Bxd5 {[%clk 0:02:47.1]} 16. exd5 {[%clk 0:02:30.1]} 16... a5 {[%clk
0:02:44.6]} 17. Bd3 {[%clk 0:02:22.8]} 17... Na6 {[%clk 0:02:36.5]} 18. h4
{[%clk 0:02:13.5]} 18... a4 {[%clk 0:02:33.3]} 19. Nc1 {[%clk 0:02:12.8]} 19...
Ndc5 {[%clk 0:02:28.2]} 20. h5 {[%clk 0:02:06.1]} 20... b3 {[%clk 0:02:22.7]}
21. g6 {[%clk 0:01:58.5]} 21... e4 {[%clk 0:02:15.7]} 22. gxh7+ {[%clk
0:01:56.6]} 22... Kh8 {[%clk 0:02:14.7]} 23. Bd4 {[%clk 0:01:55.7]} 23... Bf8
{[%clk 0:02:00.8]} 24. h6 {[%clk 0:01:28.8]} 24... f6 {[%clk 0:02:00.1]} 25.
hxg7+ {[%clk 0:01:25.9]} 25... Bxg7 {[%clk 0:02:01]} 26. Bxa6 {[%clk 0:01:02.8]}
26... bxc2+ {[%clk 0:01:58.5]} 27. Qxc2 {[%clk 0:00:59.3]} 27... Rxa6 {[%clk
0:01:38.6]} 28. Bxc5 {[%clk 0:00:50.4]} 28... Qxc5 {[%clk 0:01:33.5]} 29. Qxe4
{[%clk 0:00:46.2]} 29... Ra7 {[%clk 0:01:33.9]} 30. Rde1 {[%clk 0:00:41.8]}
30... Rac7 {[%clk 0:01:25.3]} 31. a3 {[%clk 0:00:21.7]} 31... f5 {[%clk
0:01:21.2]} 32. Qxf5 {[%clk 0:00:18]} 32... Rb8 {[%clk 0:01:21.1]} 33. Nd3
{[%clk 0:00:12.9]} 33... Qc2+ {[%clk 0:01:20.5]} 34. Ka1 {[%clk 0:00:13]} 34...
Bxb2+ {[%clk 0:01:20]} 35. Ka2 {[%clk 0:00:11.4]} 35... Bg7+ {[%clk 0:01:19.7]}
0-1

[Event "*** Titled Tuesday Blitz"]
[Site "Chess.com"]
[Date "2020.04.07"]
[Round "4"]
[White "iaraldinho"]
[Black "Galileo22"]
[Result "1-0"]
[WhiteElo "2635"]
[BlackElo "2339"]
[TimeControl "180+1"]
[EndTime "13:39:45 PDT"]
[Termination "iaraldinho won by resignation"]

1. e4 {[%clk 0:03:00.9]} 1... c5 {[%clk 0:02:56.3]} 2. Nf3 {[%clk 0:03:01]} 2...
Nc6 {[%clk 0:02:56.2]} 3. d4 {[%clk 0:03:01.1]} 3... cxd4 {[%clk 0:02:56.1]} 4.
Nxd4 {[%clk 0:03:02]} 4... Nf6 {[%clk 0:02:56.6]} 5. Nc3 {[%clk 0:03:02.3]} 5...
e5 {[%clk 0:02:57]} 6. Ndb5 {[%clk 0:03:02.1]} 6... d6 {[%clk 0:02:57]} 7. Bg5
{[%clk 0:03:02]} 7... a6 {[%clk 0:02:57.5]} 8. Bxf6 {[%clk 0:03:02.2]} 8... gxf6
{[%clk 0:02:50.8]} 9. Na3 {[%clk 0:03:01.9]} 9... b5 {[%clk 0:02:48.8]} 10. Nd5
{[%clk 0:03:01.7]} 10... f5 {[%clk 0:02:22.8]} 11. Nxb5 {[%clk 0:02:59.3]} 11...
axb5 {[%clk 0:02:18.4]} 12. Bxb5 {[%clk 0:03:00.2]} 12... Bd7 {[%clk 0:02:03.7]}
13. exf5 {[%clk 0:02:57.7]} 13... Rg8 {[%clk 0:01:35.1]} 14. O-O {[%clk
0:02:50]} 14... Rb8 {[%clk 0:01:27.8]} 15. a4 {[%clk 0:02:48.1]} 15... Qg5
{[%clk 0:01:19.1]} 16. g3 {[%clk 0:02:47.7]} 16... Qxf5 {[%clk 0:01:10.9]} 17.
c3 {[%clk 0:02:40.5]} 17... h5 {[%clk 0:00:43]} 18. f4 {[%clk 0:02:27.2]} 18...
e4 {[%clk 0:00:24.3]} 19. Re1 {[%clk 0:02:26.7]} 19... Kd8 {[%clk 0:00:23.4]}
20. Ne3 {[%clk 0:02:24]} 20... Qc5 {[%clk 0:00:22.3]} 21. b4 {[%clk 0:02:10]}
21... Qxc3 {[%clk 0:00:20.3]} 22. Rc1 {[%clk 0:02:07]} 22... Qd4 {[%clk
0:00:16.6]} 23. Bxc6 {[%clk 0:02:05.2]} 23... Qxd1 {[%clk 0:00:15.4]} 24. Rexd1
{[%clk 0:02:04]} 24... Rxb4 {[%clk 0:00:13.8]} 25. Bxd7 {[%clk 0:01:59.8]} 25...
Kxd7 {[%clk 0:00:14.7]} 26. Nd5 {[%clk 0:01:59.9]} 26... Rxa4 {[%clk 0:00:07.4]}
27. Nf6+ {[%clk 0:01:59.7]} 27... Ke6 {[%clk 0:00:07.4]} 28. Nxg8 {[%clk
0:02:00.6]} 28... Bg7 {[%clk 0:00:06.7]} 29. f5+ {[%clk 0:01:56.5]} 29... Kxf5
{[%clk 0:00:06.3]} 30. Rxd6 {[%clk 0:01:55.8]} 30... Kg4 {[%clk 0:00:05.7]} 31.
Rf1 {[%clk 0:01:54.1]} 31... Be5 {[%clk 0:00:03.9]} 32. Nh6+ {[%clk 0:01:48.8]}
32... Kh3 {[%clk 0:00:03.8]} 33. Rd2 {[%clk 0:01:46.2]} 33... Ra3 {[%clk
0:00:03.3]} 34. Nxf7 {[%clk 0:01:43.5]} 34... Bxg3 {[%clk 0:00:03]} 35. Ng5+
{[%clk 0:01:42.6]} 35... Kg4 {[%clk 0:00:02.8]} 36. hxg3 {[%clk 0:01:41.7]}
36... Kxg5 {[%clk 0:00:03.3]} 37. Kg2 {[%clk 0:01:39.6]} 37... e3 {[%clk
0:00:03.4]} 38. Re2 {[%clk 0:01:39.1]} 38... Kg4 {[%clk 0:00:03]} 39. Rf4+
{[%clk 0:01:38.7]} 39... Kg5 {[%clk 0:00:03.1]} 40. Rf3 {[%clk 0:01:39.6]} 1-0

[Event "*** Titled Tuesday Blitz"]
[Site "Chess.com"]
[Date "2020.04.07"]
[Round "4"]
[White "TastyFrenchFries"]
[Black "Ali_rastbod"]
[Result "1-0"]
[WhiteElo "2419"]
[BlackElo "2612"]
[TimeControl "180+1"]
[EndTime "13:39:45 PDT"]
[Termination "TastyFrenchFries won by resignation"]

1. e4 {[%clk 0:03:00.9]} 1... e6 {[%clk 0:02:49.5]} 2. d4 {[%clk 0:02:59.5]}
2... d5 {[%clk 0:02:49.3]} 3. e5 {[%clk 0:02:59.3]} 3... c5 {[%clk 0:02:45]} 4.
c3 {[%clk 0:02:58.8]} 4... Qb6 {[%clk 0:02:41.2]} 5. Nf3 {[%clk 0:02:56.7]} 5...
Nc6 {[%clk 0:02:39.5]} 6. a3 {[%clk 0:02:56]} 6... Nh6 {[%clk 0:02:38.5]} 7. b4
{[%clk 0:02:56.5]} 7... cxd4 {[%clk 0:02:38.8]} 8. Bxh6 {[%clk 0:02:56.3]} 8...
gxh6 {[%clk 0:02:39.7]} 9. cxd4 {[%clk 0:02:56.3]} 9... Bd7 {[%clk 0:02:38.5]}
10. Ra2 {[%clk 0:02:56.4]} 10... Rg8 {[%clk 0:02:33.2]} 11. h3 {[%clk
0:02:52.2]} 11... Be7 {[%clk 0:01:57.6]} 12. g3 {[%clk 0:02:48]} 12... f6 {[%clk
0:01:48.6]} 13. b5 {[%clk 0:02:47.2]} 13... Nxd4 {[%clk 0:01:37.8]} 14. Nxd4
{[%clk 0:02:45.2]} 14... fxe5 {[%clk 0:01:37.3]} 15. Nf3 {[%clk 0:02:42.4]}
15... Bf6 {[%clk 0:01:26.4]} 16. Nxe5 {[%clk 0:02:35.7]} 16... Qa5+ {[%clk
0:00:42.9]} 17. Nd2 {[%clk 0:02:33.2]} 17... Rg5 {[%clk 0:00:39.2]} 18. Nxd7
{[%clk 0:02:31.1]} 18... Kxd7 {[%clk 0:00:40.1]} 19. Be2 {[%clk 0:02:27.4]}
19... Rag8 {[%clk 0:00:38.3]} 20. O-O {[%clk 0:02:01.1]} 20... Rxg3+ {[%clk
0:00:36.2]} 21. fxg3 {[%clk 0:02:02]} 21... Rxg3+ {[%clk 0:00:36.5]} 22. Kh1
{[%clk 0:02:00.8]} 22... Rxh3+ {[%clk 0:00:34.1]} 23. Kg2 {[%clk 0:02:00.8]}
23... Qc3 {[%clk 0:00:24.2]} 24. Nf3 {[%clk 0:01:57.7]} 24... Rh5 {[%clk
0:00:19]} 25. Rc2 {[%clk 0:01:52.3]} 25... Qe3 {[%clk 0:00:18.9]} 26. Qc1 {[%clk
0:01:52]} 26... Qb6 {[%clk 0:00:09.8]} 27. a4 {[%clk 0:01:45.7]} 27... Qd6
{[%clk 0:00:08.5]} 28. Rh1 {[%clk 0:01:37.7]} 28... Bg5 {[%clk 0:00:05.6]} 29.
Qb2 {[%clk 0:01:31.6]} 29... Qf4 {[%clk 0:00:04.1]} 30. Rxh5 {[%clk 0:01:29.6]}
30... Qg4+ {[%clk 0:00:04]} 31. Kf1 {[%clk 0:01:29.3]} 31... Qxh5 {[%clk
0:00:03.4]} 32. Qg7+ {[%clk 0:01:27.9]} 32... Be7 {[%clk 0:00:03.9]} 33. Ne5+
{[%clk 0:01:25.3]} 1-0

[Event "*** Titled Tuesday Blitz"]
[Site "Chess.com"]
[Date "2020.04.07"]
[Round "4"]
[White "tufferguy"]
[Black "julinha97"]
[Result "1-0"]
[WhiteElo "2412"]
[BlackElo "2184"]
[TimeControl "180+1"]
[EndTime "13:39:47 PDT"]
[Termination "tufferguy won by resignation"]

1. e4 {[%clk 0:03:00.9]} 1... c5 {[%clk 0:02:59.1]} 2. c3 {[%clk 0:02:59.7]}
2... d5 {[%clk 0:02:54.8]} 3. exd5 {[%clk 0:03:00.6]} 3... Qxd5 {[%clk
0:02:54.9]} 4. d4 {[%clk 0:03:00]} 4... g6 {[%clk 0:02:54.7]} 5. Nf3 {[%clk
0:02:56.4]} 5... Bg7 {[%clk 0:02:54.1]} 6. Na3 {[%clk 0:02:56.4]} 6... Bg4
{[%clk 0:02:52.5]} 7. Be2 {[%clk 0:02:15.9]} 7... Nh6 {[%clk 0:02:39.3]} 8. O-O
{[%clk 0:01:58.7]} 8... cxd4 {[%clk 0:02:34]} 9. h3 {[%clk 0:01:50.3]} 9... Bxf3
{[%clk 0:02:33.5]} 10. Bxf3 {[%clk 0:01:49.8]} 10... Qd7 {[%clk 0:02:34.1]} 11.
Bxh6 {[%clk 0:01:24.7]} 11... Bxh6 {[%clk 0:02:32.3]} 12. Qxd4 {[%clk
0:01:24.9]} 12... Qxd4 {[%clk 0:02:25.1]} 13. cxd4 {[%clk 0:01:25.8]} 13... Nc6
{[%clk 0:02:23.7]} 14. Nb5 {[%clk 0:01:09.8]} 14... O-O {[%clk 0:02:19.7]} 15.
Rfe1 {[%clk 0:00:55.8]} 15... Rad8 {[%clk 0:01:42.6]} 16. Bxc6 {[%clk
0:00:47.4]} 16... bxc6 {[%clk 0:01:41.5]} 17. Nxa7 {[%clk 0:00:39.9]} 17... Rxd4
{[%clk 0:01:36.1]} 18. Nxc6 {[%clk 0:00:38.3]} 18... Rd2 {[%clk 0:01:34.7]} 19.
b4 {[%clk 0:00:36.3]} 19... e6 {[%clk 0:01:29.6]} 20. b5 {[%clk 0:00:35.1]}
20... Rc2 {[%clk 0:01:12.8]} 21. a4 {[%clk 0:00:24]} 21... Bg7 {[%clk
0:01:12.3]} 22. Rac1 {[%clk 0:00:22.7]} 22... Ra2 {[%clk 0:01:12.3]} 23. a5
{[%clk 0:00:20.3]} 23... Bh6 {[%clk 0:00:58.7]} 24. Rb1 {[%clk 0:00:19.2]} 24...
Kg7 {[%clk 0:00:51.7]} 25. b6 {[%clk 0:00:18.5]} 25... Rc8 {[%clk 0:00:49.8]}
26. b7 {[%clk 0:00:17.9]} 26... Rxc6 {[%clk 0:00:47.5]} 27. b8=Q {[%clk
0:00:17.8]} 27... Rcc2 {[%clk 0:00:48.2]} 28. Qe5+ {[%clk 0:00:17.3]} 28... f6
{[%clk 0:00:46]} 29. Rb7+ {[%clk 0:00:16.3]} 1-0

[Event "*** Titled Tuesday Blitz"]
[Site "Chess.com"]
[Date "2020.04.07"]
[Round "4"]
[White "kasparicy"]
[Black "Schandenfreude"]
[Result "0-1"]
[WhiteElo "2331"]
[BlackElo "2513"]
[TimeControl "180+1"]
[EndTime "13:39:50 PDT"]
[Termination "Schandenfreude won by resignation"]

1. e4 {[%clk 0:03:00.9]} 1... e6 {[%clk 0:02:59.3]} 2. d4 {[%clk 0:03:00.5]}
2... d5 {[%clk 0:02:59.6]} 3. Nd2 {[%clk 0:03:00.6]} 3... dxe4 {[%clk
0:02:59.2]} 4. Nxe4 {[%clk 0:03:01.5]} 4... Nd7 {[%clk 0:02:59.6]} 5. Nf3 {[%clk
0:03:00.8]} 5... Ngf6 {[%clk 0:02:57.5]} 6. Nxf6+ {[%clk 0:03:01]} 6... Nxf6
{[%clk 0:02:56.7]} 7. Bd3 {[%clk 0:03:01.7]} 7... c5 {[%clk 0:02:56.3]} 8. Bg5
{[%clk 0:02:59.1]} 8... cxd4 {[%clk 0:02:55.3]} 9. Nxd4 {[%clk 0:03:00]} 9...
Be7 {[%clk 0:02:52.6]} 10. Nf3 {[%clk 0:02:47.6]} 10... O-O {[%clk 0:02:43.5]}
11. Qe2 {[%clk 0:02:47.8]} 11... Qa5+ {[%clk 0:02:38.8]} 12. Bd2 {[%clk
0:02:46.4]} 12... Qc7 {[%clk 0:02:30.3]} 13. O-O-O {[%clk 0:02:45.3]} 13... Bd7
{[%clk 0:02:21.9]} 14. h4 {[%clk 0:02:45.4]} 14... Rac8 {[%clk 0:02:18.8]} 15.
Kb1 {[%clk 0:02:44]} 15... a6 {[%clk 0:01:58.2]} 16. Bc3 {[%clk 0:02:41.5]}
16... Bc6 {[%clk 0:01:43.7]} 17. Be5 {[%clk 0:02:29.3]} 17... Qb6 {[%clk
0:01:31.6]} 18. Bd4 {[%clk 0:02:14.9]} 18... Qc7 {[%clk 0:01:26.8]} 19. Ng5
{[%clk 0:02:13.9]} 19... h6 {[%clk 0:01:20]} 20. Nf3 {[%clk 0:02:07.8]} 20...
Rfd8 {[%clk 0:01:10.1]} 21. Be5 {[%clk 0:02:05.4]} 21... Qa5 {[%clk 0:01:04.7]}
22. Bc3 {[%clk 0:02:02.1]} 22... Qb6 {[%clk 0:00:54.3]} 23. Bd4 {[%clk
0:01:49.2]} 23... Qa5 {[%clk 0:00:53.2]} 24. Bc3 {[%clk 0:01:20.6]} 24... Bxf3
{[%clk 0:00:46.7]} 25. Qxf3 {[%clk 0:01:18.4]} 25... Rxc3 {[%clk 0:00:46.3]} 26.
bxc3 {[%clk 0:01:18.2]} 26... Nd5 {[%clk 0:00:46]} 27. Bc4 {[%clk 0:01:05.1]}
27... Nxc3+ {[%clk 0:00:43.1]} 28. Ka1 {[%clk 0:00:53.1]} 28... Nxd1 {[%clk
0:00:42.9]} 29. Rxd1 {[%clk 0:00:53]} 29... Bf6+ {[%clk 0:00:42]} 30. Kb1 {[%clk
0:00:52.6]} 30... Rxd1+ {[%clk 0:00:32.8]} 31. Qxd1 {[%clk 0:00:53.5]} 31... Qc3
{[%clk 0:00:23.5]} 0-1